fUST/lending_fUST_20260228
["ID","MTS","AMOUNT","RATE_DAILY","PERIOD"]
[406870998,1772256014351,150.21,0.0001,2]
[406870999,1772256015073,150.21,0.0001,2]
[406871000,1772256031692,5000.0,0.0001,2]
[406871001,1772256040392,5000.0,0.0001,2]
[406871002,1772256055665,5000.0,0.0001,2]
[406871003,1772256064140,5000.0,0.0001,2]
[406871004,1772256079175,3216.8053016,0.0001,2]
[406871005,1772256392127,-298.42025008,9.703e-05,2]
[406871006,1772256470903,5000.0,9.501e-05,2]
[406871007,1772256479253,455.40620273,9.501e-05,2]
[406871008,1772256495103,5000.0,9.501e-05,2]
[406871009,1772256517039,5000.0,9.501e-05,2]
[406871010,1772256540308,5000.0,9.501e-05,2]
[406871011,1772256563099,5000.0,9.501e-05,2]
[406871012,1772256585391,5000.0,9.501e-05,2]
[406871014,1772256608309,5000.0,9.501e-05,2]
[406871015,1772256624343,1680.12722241,9.501e-05,2]
[406871016,1772256624682,-529.96814104,9.606e-05,2]
[406871017,1772256624694,-25.03185896,9.606e-05,2]
[406871018,1772256624704,-150.0,9.679e-05,2]
[406871019,1772256624714,-150.21,0.000102,2]
[406871020,1772256624723,-150.21,0.000102,2]
[406871021,1772256624733,-79.54814104,0.000103,2]
[406871042,1772256632000,-70.66185896,0.000103,2]
[406871043,1772256632010,-150.21,0.000103,2]
[406871044,1772256632021,-150.21,0.000104,2]
[406871045,1772256632030,-150.21,0.000105,2]
[406871046,1772256632040,-177.0,0.00011679,2]
[406871047,1772256632049,-2000.0,0.000131,2]
[406871048,1772256632059,-1510.91422861,0.00013237,2]
[406871049,1772256632079,-1549.37219249,0.00013237,2]
[406871050,1772256632088,-630.51547425,0.00013273,2]
[406871052,1772256632098,-500.0,0.00013273,2]
[406871054,1772256632109,-1783.80941018,0.00013397,6]
[406871084,1772256638174,-5000.0,0.00010197,2]
[406871086,1772256638183,-25067.62946038,0.00013397,6]
[406871088,1772256638194,-3233.56746409,0.00013397,6]
[406871540,1772256643180,-1266.46,0.00013397,6]
[406871834,1772256646189,-3163.91173982,0.00013397,6]
[406871837,1772256646201,-7520.79212944,0.00013397,6]
[406873280,1772257206685,150.16,9.5e-05,2]
[406873378,1772257832182,-852.67821556,0.00012461,2]
[406873381,1772257832193,-1833.22003841,0.00012461,2]
[406873384,1772257832206,-7314.10174603,0.00012461,2]
[406873386,1772257832216,-596.0,0.00012461,2]
[406873387,1772257832226,-300.0,0.00012672,2]
[406873388,1772257832236,-1226.50463769,0.00012674,2]
[406873400,1772257838394,-800.0,0.00012674,2]
[406873401,1772257838848,-960.70179085,0.00012674,2]
[406874048,1772257846716,-5000.0,0.00012547,2]
[406874050,1772257846726,-150.0,0.00012932,2]
[406874052,1772257846734,-33654.62419998,0.00013141,6]
[406874055,1772257846746,-3382.16580002,0.00013141,6]
[406874057,1772257846755,-152.3626892,0.00013179,2]
[406874059,1772257846764,-188.61089789,0.0001326,2]
[406874061,1772257846774,-505.03872561,0.00013273,2]
[406874062,1772257846784,-506.26258534,0.00013273,2]
[406874065,1772257846793,-500.0,0.00013273,2]
[406874067,1772257846803,-500.0,0.00013273,2]
[406874068,1772257846812,-230.36191567,0.00013273,2]
[406874071,1772257846821,-500.0,0.00013273,2]
[406874073,1772257846831,-500.0,0.00013273,2]
[406874074,1772257846841,-2579.17784983,0.00013294,2]
[406874077,1772257846850,-1903.23812201,0.00013441,2]
[406874078,1772257846859,-701.05338836,0.000135,2]
[406874081,1772257846870,-164.0,0.000136,2]
[406874083,1772257846879,-189.979,0.000136,2]
[406874085,1772257846888,-250.0,0.0001369,2]
[406874087,1772257846897,-250.0,0.0001369,2]
[406874089,1772257846906,-195.50349614,0.0001369,2]
[406874841,1772258883271,250.23,8.991e-05,2]
[406874842,1772259007170,158.92,9.5e-05,2]
[406874858,1772259032291,-158.92,9.8e-05,2]
[406874860,1772259032301,-158.92,0.000101,2]
[406874862,1772259032311,-875.11431141,0.00010459,2]
[406874896,1772259038501,-3166.09653177,0.00010459,2]
[406874897,1772259038513,-317.96272121,0.00010459,2]
[406874934,1772259040813,-640.82643561,0.00010459,2]
[406874936,1772259040823,-428.11082405,0.00010459,2]
[406875224,1772259043632,-138.88917595,0.00010459,2]
[406875226,1772259043641,-158.92,0.000105,2]
[406875228,1772259043650,-150.0,0.00010565,2]
[406875230,1772259043659,-426.80578481,0.00010618,2]
[406875232,1772259043668,-177.0,0.00012565,2]
[406875234,1772259043678,-2440.5942358,0.00013004,2]
[406875237,1772259043687,-317.8594808,0.00013004,2]
[406875240,1772259043696,-500.0,0.00013273,2]
[406875242,1772259043706,-500.0,0.00013273,2]
[406875245,1772259043716,-428.93443565,0.00013273,2]
[406875248,1772259043728,-71.06556435,0.00013273,2]
[406875250,1772259043737,-213.57511646,0.00013273,2]
[406875257,1772259043770,-286.42488354,0.00013273,2]
[406875259,1772259043779,-213.57511646,0.00013273,2]
[406875317,1772259046446,-5000.0,0.00010354,2]
[406875318,1772259046456,-192.73694524,0.00013273,2]
[406875319,1772259046465,-464.35664194,0.00013273,2]
[406875320,1772259046475,-234.34659236,0.00013273,2]
[406875321,1772259046485,-724.83169578,0.00013273,2]
[406875322,1772259046494,-934.26628176,0.00013598,2]
[406875323,1772259046504,-8856.12017395,0.00013627,6]
[406875324,1772259047031,-1874.65562877,0.00013627,6]
[406875336,1772259994135,-298.42025008,0.00012432,2]
[406875344,1772260206333,208.8,9.5e-05,2]
[406875389,1772260232516,-948.56039677,0.00012063,2]
[406875391,1772260232528,-791.1670646,0.00012063,2]
[406875394,1772260232543,-165.96411031,0.00012063,2]
[406875396,1772260232552,-679.3454613,0.00012185,2]
[406875398,1772260232563,-2267.54456111,0.00012185,2]
[406875400,1772260232574,-601.38629209,0.00012185,2]
[406875403,1772260232591,-1245.5046623,0.00012185,2]
[406875405,1772260232603,-206.2190232,0.00012185,2]
[406875426,1772260232865,-150.0,0.00012247,2]
[406875427,1772260232875,-3083.98022702,0.00012308,2]
[406875428,1772260232886,-181.3010005,0.00012813,2]
[406875429,1772260232896,-500.0,0.00013273,2]
[406875430,1772260232906,-500.0,0.00013273,2]
[406875431,1772260232915,-23368.92030549,0.0001339,6]
[406875432,1772260232933,-912.21093413,0.0001339,6]
[406875601,1772260238726,-4088.97028541,0.0001339,6]
[406875602,1772260238739,-3570.83799964,0.0001339,6]
[406875603,1772260238750,-259.501,0.0001339,6]
[406875604,1772260239019,-5768.81878562,0.0001339,6]
[406875605,1772260239032,-4496.77047883,0.0001339,6]
[406875606,1772260239047,-3616.2371036,0.0001339,6]
[406875677,1772260241369,-1286.17482629,0.0001339,6]
[406875679,1772260241381,-2860.06566523,0.0001339,6]
[406875681,1772260241392,-1138.54114521,0.0001339,6]
[406875965,1772260244211,-793.3533915,0.0001339,6]
[406875968,1772260244223,-484.19212185,0.0001339,6]
[406875970,1772260244233,-11074.39,0.0001339,6]
[406875973,1772260244244,-2149.33,0.0001339,6]
[406876140,1772260246098,1398.68054325,0.00012329,2]
[406876171,1772260247515,-1935.55945675,0.00012329,2]
[406876172,1772260247525,-4867.15617748,0.0001339,6]
[406876173,1772260247536,-494.293216,0.0001339,6]
[406876192,1772260683344,175.16,8.991e-05,2]
[406876193,1772260758027,-203.40196736,0.00013972,25]
[406876194,1772260768739,174.0,4.3e-07,2]
[406876195,1772260770718,174.0,4.3e-07,2]
[406876196,1772260770968,174.0,4.3e-07,2]
[406876197,1772260771829,174.0,4.3e-07,2]
[406876202,1772261407476,150.74,9.5e-05,2]
[406876231,1772261431774,-1538.01353498,9.673e-05,2]
[406876234,1772261431791,-5000.0,9.771e-05,2]
[406876236,1772261431807,-5000.0,9.87e-05,2]
[406876238,1772261431825,-560.0,9.97e-05,2]
[406876241,1772261431840,-200.0,9.997e-05,2]
[406876243,1772261431855,-154.51476395,0.00010021,2]
[406876245,1772261431870,-300.0,0.00010172,2]
[406876248,1772261431884,-300.0,0.00010172,2]
[406876250,1772261431899,-1200.0,0.00010172,2]
[406876253,1772261431913,-200.0,0.00010375,2]
[406876255,1772261431926,-7972.1533602,0.00010591,2]
[406876258,1772261431941,-50000.0,0.00010591,2]
[406876260,1772261431955,-318.45822743,0.00011169,2]
[406876263,1772261431969,-500.0,0.00011169,2]
[406876265,1772261431983,-500.0,0.00011169,2]
[406876268,1772261431997,-500.0,0.00011169,2]
[406876270,1772261432011,-500.0,0.00011169,2]
[406876273,1772261432028,-500.0,0.00011169,2]
[406876275,1772261432042,-255.49796942,0.00011169,2]
[406876277,1772261432056,-500.0,0.00011169,2]
[406876279,1772261432070,-600.0,0.00011169,2]
[406876282,1772261432084,-500.0,0.00011169,2]
[406876284,1772261432099,-500.0,0.00011169,2]
[406876285,1772261432113,-500.0,0.00011169,2]
[406876286,1772261432129,-500.0,0.00011169,2]
[406876287,1772261432143,-500.0,0.00011169,2]
[406876288,1772261432158,-500.0,0.00011169,2]
[406876289,1772261432174,-500.0,0.00011169,2]
[406876290,1772261432189,-500.0,0.00011169,2]
[406876291,1772261432203,-500.0,0.00011169,2]
[406876292,1772261432217,-500.0,0.00011169,2]
[406876293,1772261432231,-500.0,0.00011169,2]
[406876294,1772261432245,-500.0,0.00011169,2]
[406876295,1772261432259,-500.0,0.00011169,2]
[406876296,1772261432278,-500.0,0.00011169,2]
[406876297,1772261432293,-579.53060146,0.00011169,2]
[406876298,1772261432307,-500.0,0.00011169,2]
[406876299,1772261432323,-500.0,0.00011169,2]
[406876300,1772261432337,-500.0,0.00011169,2]
[406876301,1772261432352,-500.0,0.00011169,2]
[406876302,1772261432366,-500.0,0.00011169,2]
[406876303,1772261432381,-286.4235791,0.00011169,2]
[406876304,1772261432400,-213.5764209,0.00011169,2]
[406876305,1772261432415,-500.0,0.00011169,2]
[406876306,1772261432431,-500.0,0.00011169,2]
[406876307,1772261432445,-500.0,0.00011169,2]
[406876308,1772261432458,-500.0,0.00011169,2]
[406876309,1772261432471,-500.0,0.00011169,2]
[406876310,1772261432485,-500.0,0.00011169,2]
[406876311,1772261432499,-500.0,0.00011169,2]
[406876312,1772261432514,-500.0,0.00011169,2]
[406876313,1772261432536,-500.0,0.00011169,2]
[406876314,1772261432549,-500.0,0.00011169,2]
[406876315,1772261432565,-500.0,0.00011169,2]
[406876316,1772261432580,-329.63100085,0.00011169,2]
[406876317,1772261432593,-500.0,0.00011169,2]
[406876318,1772261432606,-500.0,0.00011169,2]
[406876319,1772261432616,-500.0,0.00011169,2]
[406876320,1772261432627,-500.0,0.00011169,2]
[406876321,1772261432636,-500.0,0.00011169,2]
[406876322,1772261432646,-500.0,0.00011169,2]
[406876323,1772261432656,-500.0,0.00011169,2]
[406876324,1772261432667,-500.0,0.00011169,2]
[406876325,1772261432983,-500.0,0.00011169,2]
[406876326,1772261433029,-500.0,0.00011169,2]
[406876327,1772261433040,-500.0,0.00011169,2]
[406876328,1772261433050,-500.0,0.00011169,2]
[406876329,1772261433060,-500.0,0.00011169,2]
[406876330,1772261433070,-500.0,0.00011169,2]
[406876331,1772261433081,-500.0,0.00011169,2]
[406876332,1772261433091,-500.0,0.00011169,2]
[406876333,1772261433102,-174.56279935,0.00011169,2]
[406876334,1772261433112,-500.0,0.00011169,2]
[406876335,1772261433123,-500.0,0.00011169,2]
[406876336,1772261433132,-500.0,0.00011169,2]
[406876337,1772261433142,-13.22346465,0.00011169,2]
[406876338,1772261433155,-486.77653535,0.00011169,2]
[406876339,1772261433165,-500.0,0.00011169,2]
[406876340,1772261433175,-500.0,0.00011169,2]
[406876341,1772261433185,-500.0,0.00011169,2]
[406876342,1772261433195,-215.77541311,0.00011169,2]
[406876343,1772261433205,-500.0,0.00011169,2]
[406876344,1772261433216,-500.0,0.00011169,2]
[406876345,1772261433226,-500.0,0.00011169,2]
[406876346,1772261433236,-500.0,0.00011169,2]
[406876347,1772261433246,-116.1856165,0.00011169,2]
[406876348,1772261433258,-383.8143835,0.00011169,2]
[406876349,1772261433274,-500.0,0.00011169,2]
[406876350,1772261433285,-500.0,0.00011169,2]
[406876351,1772261433296,-500.0,0.00011169,2]
[406876352,1772261433309,-500.0,0.00011169,2]
[406876353,1772261433319,-500.0,0.00011169,2]
[406876354,1772261433329,-500.0,0.00011169,2]
[406876355,1772261433339,-500.0,0.00011169,2]
[406876356,1772261433349,-500.0,0.00011169,2]
[406876357,1772261433359,-500.0,0.00011169,2]
[406876358,1772261433368,-500.0,0.00011169,2]
[406876359,1772261433379,-500.0,0.00011169,2]
[406876360,1772261433388,-500.0,0.00011169,2]
[406876361,1772261433398,-500.0,0.00011169,2]
[406876362,1772261433408,-500.0,0.00011169,2]
[406876363,1772261433418,-500.0,0.00011169,2]
[406876364,1772261433427,-500.0,0.00011169,2]
[406876365,1772261433437,-500.0,0.00011169,2]
[406876366,1772261433446,-500.0,0.00011169,2]
[406876367,1772261433456,-500.0,0.00011169,2]
[406876368,1772261433465,-500.0,0.00011169,2]
[406876369,1772261433475,-500.0,0.00011169,2]
[406876370,1772261433486,-500.0,0.00011169,2]
[406876371,1772261433496,-500.0,0.00011169,2]
[406876372,1772261433507,-500.0,0.00011169,2]
[406876373,1772261433525,-500.0,0.00011169,2]
[406876374,1772261433535,-500.0,0.00011169,2]
[406876375,1772261433545,-500.0,0.00011169,2]
[406876376,1772261433556,-500.0,0.00011169,2]
[406876377,1772261433565,-500.0,0.00011169,2]
[406876378,1772261433575,-500.0,0.00011169,2]
[406876379,1772261433585,-500.0,0.00011169,2]
[406876380,1772261433595,-500.0,0.00011169,2]
[406876381,1772261433605,-500.0,0.00011169,2]
[406876382,1772261433614,-500.0,0.00011169,2]
[406876383,1772261433624,-500.0,0.00011169,2]
[406876384,1772261433633,-500.0,0.00011169,2]
[406876385,1772261433644,-500.0,0.00011169,2]
[406876386,1772261433653,-500.0,0.00011169,2]
[406876387,1772261433663,-500.0,0.00011169,2]
[406876388,1772261433672,-500.0,0.00011169,2]
[406876389,1772261433681,-500.0,0.00011169,2]
[406876390,1772261433692,-420.24591792,0.00011169,2]
[406876391,1772261433702,-500.0,0.00011169,2]
[406876392,1772261433712,-500.0,0.00011169,2]
[406876393,1772261433721,-500.0,0.00011169,2]
[406876394,1772261433731,-500.0,0.00011169,2]
[406876395,1772261433740,-500.0,0.00011169,2]
[406876396,1772261433751,-500.0,0.00011169,2]
[406876397,1772261433761,-500.0,0.00011169,2]
[406876398,1772261433775,-500.0,0.00011169,2]
[406876399,1772261433784,-500.0,0.00011169,2]
[406876400,1772261433796,-270.00589393,0.00011169,2]
[406876401,1772261433898,-229.99410607,0.00011169,2]
[406876402,1772261433908,-500.0,0.00011169,2]
[406876403,1772261433918,-626.13497115,0.00011169,2]
[406876404,1772261433927,-500.0,0.00011169,2]
[406876405,1772261433937,-500.0,0.00011169,2]
[406876406,1772261433947,-500.0,0.00011169,2]
[406876407,1772261433956,-500.0,0.00011169,2]
[406876408,1772261433966,-500.0,0.00011169,2]
[406876409,1772261433975,-500.0,0.00011169,2]
[406876410,1772261433984,-500.0,0.00011169,2]
[406876411,1772261433994,-500.0,0.00011169,2]
[406876412,1772261434004,-500.0,0.00011169,2]
[406876413,1772261434015,-500.0,0.00011169,2]
[406876414,1772261434031,-500.0,0.00011169,2]
[406876415,1772261434042,-500.0,0.00011169,2]
[406876416,1772261434052,-500.0,0.00011169,2]
[406876417,1772261434062,-500.0,0.00011169,2]
[406876418,1772261434072,-500.0,0.00011169,2]
[406876419,1772261434081,-151.0,0.0001117,2]
[406876420,1772261434090,-151.0,0.0001117,2]
[406876421,1772261434099,-420.0,0.00011187,2]
[406876422,1772261434109,-674.14286582,0.00011189,2]
[406876423,1772261434121,-315.45823232,0.00011189,2]
[406876424,1772261435053,5000.0,9.501e-05,2]
[406876451,1772261439221,-226.39890186,0.00011189,2]
[406876453,1772261439231,-2023.8052508,0.00011512,2]
[406876455,1772261439242,-2051.90469626,0.00011754,2]
[406876457,1772261439252,-182.32742146,0.0001202,2]
[406876459,1772261439262,-150.0,0.00012052,2]
[406876461,1772261439275,-227.02108745,0.00012052,2]
[406876463,1772261439285,-150.59385707,0.00012052,2]
[406876465,1772261439295,-151.0,0.00012052,2]
[406876467,1772261439305,-151.0,0.00012052,2]
[406876469,1772261439315,-151.0,0.00012052,2]
[406876473,1772261439324,-151.0,0.00012052,2]
[406876476,1772261439334,-151.0,0.00012052,2]
[406876478,1772261439343,-151.0,0.00012052,2]
[406876480,1772261439352,-167.0,0.00012304,2]
[406876482,1772261439361,-151.0,0.00012328,2]
[406876484,1772261439371,-2778.54,0.00012329,2]
[406876486,1772261439381,-2315.45,0.00012329,2]
[406876488,1772261439390,-798.57984637,0.00012329,2]
[406876490,1772261439402,-1130.96015363,0.00012329,2]
[406876492,1772261439411,-1607.95,0.00012329,2]
[406876494,1772261439420,-1339.96,0.00012329,2]
[406876496,1772261439430,-1116.63,0.00012329,2]
[406876498,1772261439439,-773.2260039,0.00012329,2]
[406876500,1772261439450,-157.3039961,0.00012329,2]
[406876502,1772261439460,-775.44,0.00012329,2]
[406876504,1772261439477,-646.2,0.00012329,2]
[406876506,1772261439487,-98.67216379,0.00012721,2]
[406876509,1772261439501,-2387.78661943,0.00012721,2]
[406876511,1772261439511,-288.94695949,0.0001287,2]
[406876513,1772261439521,-194.72792766,0.00013016,2]
[406876515,1772261439534,-194.72792766,0.00013016,2]
[406876517,1772261439544,-201.93286099,0.00013016,2]
[406876519,1772261439553,-250.0,0.00013016,2]
[406876521,1772261439563,-209.40437684,0.00013016,2]
[406876524,1772261439573,-217.15233878,0.00013016,2]
[406876527,1772261439583,-304.49650386,0.00013016,2]
[406876529,1772261439591,-225.18697532,0.00013016,2]
[406876531,1772261439601,-186.80251303,0.00013016,2]
[406876533,1772261439610,-233.51889341,0.00013016,2]
[406876535,1772261439619,-242.15909246,0.00013016,2]
[406876536,1772261439628,-251.11897888,0.00013016,2]
[406876538,1772261439637,-2425.10809209,0.00013016,2]
[406876541,1772261439649,-154.06975774,0.00013016,2]
[406876543,1772261439658,-260.4103811,0.00013016,2]
[406876545,1772261439667,-270.0455652,0.00013016,2]
[406876547,1772261439677,-280.03725112,0.00013016,2]
[406876549,1772261439686,-290.39862941,0.00013016,2]
[406876551,1772261439695,-500.0,0.00013016,2]
[406876555,1772261439705,-301.1433787,0.00013016,2]
[406876557,1772261439714,-500.0,0.00013016,2]
[406876559,1772261439723,-644.79446246,0.00013016,2]
[406876561,1772261439733,-500.0,0.00013016,2]
[406876563,1772261439743,-500.0,0.00013016,2]
[406876565,1772261439753,-500.0,0.00013016,2]
[406876567,1772261439762,-500.0,0.00013016,2]
[406876569,1772261439771,-292.85909735,0.00013016,2]
[406876571,1772261439785,-2445.4107154,0.00013125,2]
[406876572,1772261439794,-2546.7290132,0.00013125,2]
[406876575,1772261439806,-500.0,0.00013273,2]
[406876577,1772261439815,-394.86936231,0.00013273,2]
[406876578,1772261439826,-500.0,0.00013273,2]
[406876581,1772261439837,-500.0,0.00013273,2]
[406876582,1772261439847,-18234.46,0.00013345,6]
[406876585,1772261439856,-292.08824595,0.0001338,2]
[406876587,1772261439866,-408.73,0.00013527,2]
[406876589,1772261439880,-2674.60743027,0.00013564,2]
[406876591,1772261439890,-377.16232669,0.00013564,2]
[406876593,1772261439900,-178.18283561,0.00013598,2]
[406876595,1772261439910,-333.81513823,0.00013675,2]
[406876597,1772261439920,-30677.65799813,0.00013698,2]
[406876599,1772261439929,-3644.892598,0.00013698,2]
[406876601,1772261439939,-281.436465,0.00013698,2]
[406876603,1772261439948,-500.0,0.00013698,2]
[406876605,1772261439958,-500.0,0.00013698,2]
[406876607,1772261439967,-500.0,0.00013698,2]
[406876609,1772261439977,-500.0,0.00013698,2]
[406876611,1772261439987,-510.39909383,0.00013698,2]
[406876613,1772261439997,-500.0,0.00013698,2]
[406876615,1772261440007,-500.0,0.00013698,2]
[406876617,1772261440016,-537.94169649,0.00013698,2]
[406876619,1772261440031,-500.0,0.00013698,2]
[406876621,1772261440040,-500.0,0.00013698,2]
[406876623,1772261440050,-500.0,0.00013698,2]
[406876625,1772261440059,-533.32976366,0.00013698,2]
[406876627,1772261440069,-500.0,0.00013698,2]
[406876629,1772261440079,-500.0,0.00013698,2]
[406876631,1772261440090,-500.0,0.00013698,2]
[406876633,1772261440100,-500.0,0.00013698,2]
[406876635,1772261440111,-500.0,0.00013698,2]
[406876637,1772261440121,-500.0,0.00013698,2]
[406876639,1772261440131,-500.0,0.00013698,2]
[406876641,1772261440142,-500.0,0.00013698,2]
[406876643,1772261440151,-500.0,0.00013698,2]
[406876645,1772261440162,-500.0,0.00013698,2]
[406876647,1772261440172,-500.0,0.00013698,2]
[406876649,1772261440182,-500.0,0.00013698,2]
[406876651,1772261440191,-500.0,0.00013698,2]
[406876653,1772261440201,-500.0,0.00013698,2]
[406876655,1772261440211,-500.0,0.00013698,2]
[406876657,1772261440221,-500.0,0.00013698,2]
[406876659,1772261440230,-500.0,0.00013698,2]
[406876661,1772261440239,-500.0,0.00013698,2]
[406876663,1772261440249,-500.0,0.00013698,2]
[406876665,1772261440259,-500.0,0.00013698,2]
[406876667,1772261440269,-500.0,0.00013698,2]
[406876669,1772261440284,-500.0,0.00013698,2]
[406876671,1772261440293,-500.0,0.00013698,2]
[406876673,1772261440302,-500.0,0.00013698,2]
[406876675,1772261440312,-500.0,0.00013698,2]
[406876677,1772261440322,-500.0,0.00013698,2]
[406876679,1772261440331,-500.0,0.00013698,2]
[406876681,1772261440342,-500.0,0.00013698,2]
[406876683,1772261440352,-500.0,0.00013698,2]
[406876685,1772261440361,-246.69,0.00013698,2]
[406876687,1772261440371,-911.3,0.00013698,2]
[406876689,1772261440382,-3380.1,0.00013698,2]
[406876691,1772261440392,-893.64,0.00013698,2]
[406876693,1772261440402,-516.87,0.00013698,2]
[406876695,1772261440411,-637.60925498,0.00013698,2]
[406876697,1772261440421,-500.0,0.00013698,2]
[406876699,1772261440430,-500.0,0.00013698,2]
[406876701,1772261440440,-500.0,0.00013698,2]
[406876703,1772261440449,-500.0,0.00013698,2]
[406876705,1772261440459,-500.0,0.00013698,2]
[406876707,1772261440469,-500.0,0.00013698,2]
[406876709,1772261440478,-500.0,0.00013698,2]
[406876711,1772261440487,-500.0,0.00013698,2]
[406876713,1772261440497,-1048.6,0.00013698,2]
[406876715,1772261440507,-500.0,0.00013698,2]
[406876717,1772261440516,-500.0,0.00013698,2]
[406876719,1772261440528,-500.0,0.00013698,2]
[406876721,1772261440538,-516.57,0.00013698,2]
[406876723,1772261440547,-1202.85,0.00013698,2]
[406876725,1772261440557,-640.93,0.00013698,2]
[406876727,1772261440567,-500.0,0.00013698,2]
[406876729,1772261440577,-1099.72,0.00013698,2]
[406876731,1772261440586,-500.0,0.00013698,2]
[406876733,1772261440596,-707.41,0.00013698,2]
[406876735,1772261440605,-500.0,0.00013698,2]
[406876737,1772261440615,-551.5,0.00013698,2]
[406876739,1772261440624,-500.0,0.00013698,2]
[406876741,1772261440634,-500.0,0.00013698,2]
[406876743,1772261440644,-618.24,0.00013698,2]
[406876745,1772261440654,-1327.99,0.00013698,2]
[406876748,1772261440664,-500.0,0.00013698,2]
[406876750,1772261440673,-500.0,0.00013698,2]
[406876751,1772261440683,-500.0,0.00013698,2]
[406876753,1772261440694,-500.0,0.00013698,2]
[406876756,1772261440704,-500.0,0.00013698,2]
[406876758,1772261440713,-732.55,0.00013698,2]
[406876760,1772261440723,-500.0,0.00013698,2]
[406876761,1772261440732,-500.0,0.00013698,2]
[406876764,1772261440743,-500.0,0.00013698,2]
[406876766,1772261440753,-686.28,0.00013698,2]
[406876767,1772261440762,-879.04,0.00013698,2]
[406876769,1772261440775,-500.0,0.00013698,2]
[406876772,1772261440785,-621.08040893,0.00013698,2]
[406876774,1772261440794,-657.53,0.00013698,2]
[406876776,1772261440806,-520.82,0.00013698,2]
[406876778,1772261440815,-500.0,0.00013698,2]
[406876780,1772261440825,-500.0,0.00013698,2]
[406876782,1772261440836,-655.81,0.00013698,2]
[406876784,1772261440847,-500.0,0.00013698,2]
[406876786,1772261440858,-500.0,0.00013698,2]
[406876788,1772261440867,-2379.45,0.00013698,2]
[406876790,1772261440876,-500.0,0.00013698,2]
[406876792,1772261440886,-1892.76,0.00013698,2]
[406876795,1772261440898,-500.0,0.00013698,2]
[406876797,1772261440907,-1041.09,0.00013698,2]
[406876799,1772261440918,-500.0,0.00013698,2]
[406876800,1772261440928,-1274.93,0.00013698,2]
[406876802,1772261440938,-500.0,0.00013698,2]
[406876805,1772261440947,-500.0,0.00013698,2]
[406876807,1772261440957,-500.0,0.00013698,2]
[406876809,1772261440966,-500.0,0.00013698,2]
[406876811,1772261440976,-500.0,0.00013698,2]
[406876813,1772261440985,-1705.29,0.00013698,2]
[406876814,1772261440995,-500.0,0.00013698,2]
[406876817,1772261441005,-500.0,0.00013698,2]
[406876819,1772261441014,-500.0,0.00013698,2]
[406876820,1772261441026,-500.0,0.00013698,2]
[406876822,1772261441036,-359.62037684,0.00013698,2]
[406876824,1772261441045,-2003.79,0.00013698,2]
[406876826,1772261441055,-732.61,0.00013698,2]
[406876829,1772261441065,-500.0,0.00013698,2]
[406876830,1772261441074,-500.0,0.00013698,2]
[406876833,1772261441084,-500.0,0.00013698,2]
[406876835,1772261441093,-500.0,0.00013698,2]
[406876837,1772261441102,-500.0,0.00013698,2]
[406876839,1772261441112,-500.0,0.00013698,2]
[406876840,1772261441121,-2516.88,0.00013698,2]
[406876842,1772261441130,-914.07,0.00013698,2]
[406876844,1772261441140,-1961.73,0.00013698,2]
[406876846,1772261441150,-500.0,0.00013698,2]
[406876848,1772261441159,-500.0,0.00013698,2]